bitfinex/quotes_BTCUSD_20250608
["timestamp","ask_amount","ask_price","bid_price","bid_amount"]
[1749369792681,0.34064392,105580.0,105570.0,0.78805759]
[1749369792895,0.34064392,105580.0,105570.0,0.80575993]
[1749369793526,0.34064392,105580.0,105570.0,0.78805759]
[1749369794402,0.34064392,105580.0,105570.0,0.80575993]
[1749369795273,0.34064392,105580.0,105570.0,0.78805759]
[1749369795478,0.34064392,105580.0,105570.0,0.80575993]
[1749369795687,0.34064392,105580.0,105570.0,0.78805759]
[1749369796122,0.34064392,105580.0,105570.0,0.79752952]
[1749369797240,0.34064392,105580.0,105570.0,0.78805759]
[1749369797462,0.34064392,105580.0,105570.0,0.84360779]
[1749369797686,0.34064392,105580.0,105570.0,0.83537738]
[1749369798735,0.34064392,105580.0,105570.0,0.85307972]
[1749369798975,0.34064392,105580.0,105570.0,0.83537738]
[1749369799383,0.34064392,105580.0,105570.0,0.85307972]
[1749369800027,0.34064392,105580.0,105570.0,0.85309072]
[1749369800742,0.34064392,105580.0,105570.0,0.83537738]
[1749369800986,0.34064392,105580.0,105570.0,0.85309072]
[1749369801433,0.34064392,105580.0,105570.0,0.83537738]
[1749369801879,0.34064392,105580.0,105570.0,0.85309072]
[1749369802110,0.3311727,105580.0,105570.0,0.82590545]
[1749369802519,0.3311727,105580.0,105570.0,0.84361879]
[1749369802756,0.3311727,105580.0,105570.0,0.82590545]
[1749369803393,0.3311727,105580.0,105570.0,0.84362903]
[1749369803820,0.3311727,105580.0,105570.0,0.82590545]
[1749369804463,0.3311727,105580.0,105570.0,0.84362903]
[1749369805758,0.3311727,105580.0,105570.0,0.81524199]
[1749369805976,0.3311727,105580.0,105570.0,0.82589994]
[1749369806194,0.3311727,105580.0,105570.0,0.80699034]
[1749369806415,0.3311727,105580.0,105570.0,0.82471392]
[1749369806945,0.3311727,105580.0,105570.0,0.80699034]
[1749369807154,0.3311727,105580.0,105570.0,0.82476048]
[1749369807349,0.3311727,105580.0,105570.0,0.84253062]
[1749369807558,0.3311727,105580.0,105570.0,0.82476048]
[1749369807831,0.3311727,105580.0,105570.0,0.84253062]
[1749369808241,0.3311727,105580.0,105570.0,0.88151933]
[1749369808667,0.3311727,105580.0,105570.0,0.89928947]
[1749369808882,0.3311727,105580.0,105570.0,0.88151933]
[1749369809446,0.3311727,105580.0,105570.0,0.89928948]
[1749369809644,0.3311727,105580.0,105570.0,0.89928947]
[1749369809861,0.3311727,105580.0,105570.0,0.88151933]
[1749369810545,0.3311727,105580.0,105570.0,0.89928947]
[1749369810762,0.3311727,105580.0,105570.0,0.88151933]
[1749369811444,0.3311727,105580.0,105570.0,0.90876131]
[1749369811685,0.3311727,105580.0,105570.0,0.89099117]
[1749369812360,0.3311727,105580.0,105570.0,0.85314331]
[1749369812788,0.3303327,105580.0,105570.0,0.85314331]
[1749369813425,0.3303327,105580.0,105570.0,0.87091345]
[1749369813641,0.3303327,105580.0,105570.0,0.85314331]
[1749369813972,0.2391727,105580.0,105570.0,0.85314331]
[1749369814228,0.3303327,105580.0,105570.0,0.84219183]
[1749369815040,0.3303327,105580.0,105570.0,0.85166367]
[1749369820115,0.04974253,105580.0,105570.0,0.85166304]
[1749369820752,0.05921402,105580.0,105570.0,0.85166304]
[1749369822986,0.04974253,105580.0,105570.0,0.85166304]
[1749369834697,0.23917234,105580.0,105570.0,0.84219129]
[1749369835756,0.23917234,105580.0,105570.0,0.83155945]
[1749369835988,0.23917234,105580.0,105570.0,0.84103129]
[1749369838659,0.23917234,105580.0,105570.0,0.82208752]
[1749369838862,0.23917234,105580.0,105570.0,0.83155945]
[1749369839083,0.23917234,105580.0,105570.0,0.84103129]
[1749369839379,0.23917234,105580.0,105570.0,0.83155945]
[1749369839597,0.23917234,105580.0,105570.0,0.83155963]
[1749369839801,0.23917234,105580.0,105570.0,0.84103165]
[1749369839981,0.22970121,105580.0,105570.0,0.51142392]
[1749369840245,0.22970121,105580.0,105570.0,0.85028788]
[1749369841540,0.22970121,105580.0,105570.0,0.85976026]
[1749369842237,0.22970121,105580.0,105570.0,0.86923264]
[1749369842441,0.22970121,105580.0,105570.0,0.87870475]
[1749369847055,0.22970121,105580.0,105570.0,0.86923264]
[1749369847505,0.22022981,105580.0,105570.0,0.86923264]
[1749369849435,0.22022981,105580.0,105570.0,0.65136802]
[1749369849684,0.22022981,105580.0,105570.0,0.85028815]
[1749369850315,0.56022981,105580.0,105570.0,0.49764969]
[1749369850524,0.56022981,105580.0,105570.0,0.52607675]
[1749369850934,0.56022981,105580.0,105570.0,0.23515675]
[1749369851148,0.56022981,105580.0,105570.0,0.52619675]
[1749369853192,0.56022981,105580.0,105570.0,0.4882849]
[1749369853606,0.56022981,105580.0,105570.0,0.1972449]
[1749369853820,0.56022981,105580.0,105570.0,0.4882449]
[1749369854862,0.56222981,105580.0,105570.0,0.4882449]
[1749369855486,0.56222981,105580.0,105570.0,0.4872449]
[1749369855693,0.56322981,105580.0,105570.0,0.4872449]
[1749369858147,0.56322981,105580.0,105570.0,0.1962449]
[1749369858677,0.56322981,105580.0,105570.0,0.30857784]
[1749369863904,0.56322981,105580.0,105570.0,0.45857784]
[1749369866111,0.56322981,105580.0,105570.0,0.45817784]
[1749369878229,0.56322981,105580.0,105570.0,0.4866049]
[1749369878905,0.56322981,105580.0,105570.0,0.3366049]
[1749369881642,0.56273306,105580.0,105570.0,0.3366049]
[1749369882301,0.65213306,105580.0,105570.0,0.3366049]
[1749369886706,0.56273306,105580.0,105570.0,0.3366049]
[1749369886912,0.65213306,105580.0,105570.0,0.3366049]
[1749369890476,0.65213306,105580.0,105570.0,0.3316049]
[1749369896953,0.65213306,105580.0,105570.0,0.0412449]
[1749369899921,0.65201306,105580.0,105570.0,0.0412449]
[1749369902066,0.65201306,105580.0,105570.0,0.04125035]
[1749369904404,0.65201306,105580.0,105570.0,0.12125035]
[1749369911648,0.56273306,105580.0,105570.0,0.12125035]
[1749369911853,0.65201306,105580.0,105570.0,0.12125035]
[1749369912072,0.56273306,105580.0,105570.0,0.12125035]
[1749369912285,0.65201306,105580.0,105570.0,0.12125035]
[1749369913798,0.56273306,105580.0,105570.0,0.12125035]
[1749369914014,0.65201306,105580.0,105570.0,0.12125035]
[1749369915316,0.56273306,105580.0,105570.0,0.12125035]
[1749369915520,0.65201306,105580.0,105570.0,0.12125035]
[1749369916846,0.65201306,105580.0,105570.0,0.04125035]
[1749369917942,0.65201306,105580.0,105570.0,0.05902275]
[1749369918159,0.56273306,105580.0,105570.0,0.05902275]
[1749369918362,0.65201306,105580.0,105570.0,0.05902275]
[1749369918570,0.65201306,105580.0,105570.0,0.19125035]
[1749369918937,0.65201306,105580.0,105570.0,0.04125035]
[1749369923525,0.65201306,105580.0,105570.0,0.19125035]
[1749369923899,0.65201306,105580.0,105570.0,0.04125035]
[1749369928485,0.65201306,105580.0,105570.0,0.19125035]
[1749369929123,0.65201306,105580.0,105570.0,0.20901254]
[1749369929526,0.65201306,105580.0,105570.0,0.19125035]
[1749369929752,0.65201306,105580.0,105570.0,0.20901254]
[1749369929959,0.65201306,105580.0,105570.0,0.05901254]
[1749369930368,0.65201306,105580.0,105570.0,0.05902294]
[1749369930992,0.65201306,105580.0,105570.0,0.04125035]
[1749369931823,0.65201306,105580.0,105570.0,0.05902294]
[1749369932024,0.65201306,105580.0,105570.0,0.04125035]
[1749369932272,0.65201306,105580.0,105570.0,0.05902292]
[1749369932475,0.65201306,105580.0,105570.0,0.04125035]
[1749369932675,0.65201306,105580.0,105570.0,0.05902292]
[1749369932932,0.65201306,105580.0,105570.0,0.04125035]
[1749369933202,0.65201306,105580.0,105570.0,0.05902292]
[1749369933617,0.65201306,105580.0,105570.0,0.20902292]
[1749369933960,0.65201306,105580.0,105570.0,0.20902247]
[1749369934283,0.65201306,105580.0,105570.0,0.19125035]
[1749369934929,0.65201306,105580.0,105570.0,0.20902247]
[1749369935473,0.65201306,105580.0,105570.0,0.19125035]
[1749369937497,0.65201306,105580.0,105570.0,0.04125035]
[1749369939170,0.65201306,105580.0,105570.0,0.19125035]
[1749369939954,0.65201306,105580.0,105570.0,0.04125035]
[1749369941432,0.65201306,105580.0,105570.0,0.05072273]
[1749369943823,0.65201306,105580.0,105570.0,0.25794224]
[1749369944049,0.65201306,105580.0,105570.0,0.24017048]
[1749369944268,0.65201306,105580.0,105570.0,0.40794224]
[1749369944499,0.65201306,105580.0,105570.0,0.24017048]
[1749369944717,0.65201306,105580.0,105570.0,0.24964277]
[1749369945169,0.65201306,105580.0,105570.0,0.25911497]
[1749369946290,0.65201306,105580.0,105570.0,0.26858699]
[1749369947297,0.65201306,105580.0,105570.0,0.25911497]
[1749369948082,0.65201306,105580.0,105570.0,0.26858708]
[1749369949278,0.65201306,105580.0,105570.0,0.41858708]
[1749369949932,0.65201306,105580.0,105570.0,0.45649893]
[1749369950546,0.65201306,105580.0,105570.0,0.42806642]
[1749369950741,0.65201306,105580.0,105570.0,0.39015457]
[1749369951142,0.65201306,105580.0,105570.0,0.45650025]
[1749369951392,0.65201306,105580.0,105570.0,0.30650025]
[1749369954455,0.65201306,105580.0,105570.0,0.36650025]
[1749369956805,0.65201306,105580.0,105570.0,0.37597227]
[1749369959889,0.65201306,105580.0,105570.0,0.36650025]
[1749369965595,0.65201306,105580.0,105570.0,0.35702814]
[1749369970111,0.65201306,105580.0,105570.0,0.37479702]
[1749369970546,0.65201306,105580.0,105570.0,0.35702814]
[1749369970747,0.65201306,105580.0,105570.0,0.37479702]
[1749369970960,0.65201306,105580.0,105570.0,0.35702814]
[1749369971595,0.38277447,105580.0,105570.0,0.37597191]
[1749369971840,0.49922813,105580.0,105570.0,0.39374074]
[1749369972063,0.48028542,105580.0,105570.0,0.37597191]
[1749369972726,0.48975673,105580.0,105570.0,0.3937403]
[1749369972927,0.48975673,105580.0,105570.0,0.37597191]
[1749369973186,0.49922813,105580.0,105570.0,0.39374379]
[1749369973396,0.49922813,105580.0,105570.0,0.37597191]
[1749369973805,0.49922813,105580.0,105570.0,0.39374379]
[1749369974419,0.49922813,105580.0,105570.0,0.37597191]
[1749369974791,0.48975673,105580.0,105570.0,0.47237139]
[1749369975528,0.48975673,105580.0,105570.0,0.49014327]
[1749369975783,0.48975673,105580.0,105570.0,0.47237139]
[1749369976482,0.48975673,105580.0,105570.0,0.49014327]
[1749369977133,0.48975673,105580.0,105570.0,0.47237139]
[1749369977359,0.48028542,105580.0,105570.0,0.49014327]
[1749369977614,0.48028542,105580.0,105570.0,0.47237139]
[1749369977875,0.09104,105580.0,105570.0,0.50069638]
[1749369978552,0.09104,105580.0,105570.0,0.51846725]
[1749369978776,0.10051077,105580.0,105570.0,0.50069638]
[1749369978986,0.10051086,105580.0,105570.0,0.50069638]
[1749369979202,0.09104,105580.0,105570.0,0.51846722]
[1749369979467,0.10051068,105580.0,105570.0,0.51846722]
[1749369980375,0.10051068,105580.0,105570.0,0.51846718]
[1749369980757,0.10051068,105580.0,105570.0,0.51844028]
[1749369981018,0.003,105580.0,105570.0,0.50069638]
[1749369981459,0.003,105580.0,105570.0,0.51844028]
[1749369982302,0.003,105580.0,105570.0,0.50069638]
[1749369982519,0.003,105580.0,105570.0,0.51844028]
[1749369982916,0.003,105580.0,105570.0,0.50069638]
[1749369983158,0.003,105580.0,105570.0,0.51844028]
[1749369983583,0.003,105580.0,105570.0,0.50069638]
[1749369983792,0.003,105580.0,105570.0,0.51844028]
[1749369984003,0.003,105580.0,105570.0,0.50069638]
[1749369984872,0.02194163,105580.0,105570.0,0.50069638]
[1749369985362,0.01247068,105580.0,105570.0,0.50069638]
[1749369985562,0.02194154,105580.0,105570.0,0.50069638]
[1749369986687,0.03141258,105580.0,105570.0,0.50069638]
[1749369986903,0.04721258,105580.0,105570.0,0.50069638]
[1749369987351,0.03774154,105580.0,105570.0,0.50069638]
[1749369987566,0.04721258,105580.0,105570.0,0.50069638]
[1749369988843,0.06381258,105580.0,105570.0,0.50069638]
[1749369989950,0.07328371,105580.0,105570.0,0.50069638]
[1749369992460,0.0732838,105580.0,105570.0,0.50069638]
[1749369992899,0.06381258,105580.0,105570.0,0.50069638]
[1749369993116,0.0732838,105580.0,105570.0,0.50069638]
[1749369995294,0.07328371,105580.0,105570.0,0.50069638]
[1749369998252,0.08275502,105580.0,105570.0,0.50069638]
[1749369998493,0.07328371,105580.0,105570.0,0.50069638]
[1749370003239,0.08275493,105580.0,105570.0,0.50069638]
[1749370004534,0.05434154,105580.0,105570.0,0.50069638]
[1749370004775,0.06381258,105580.0,105570.0,0.50069638]
[1749370006483,0.05434154,105580.0,105570.0,0.50069638]
[1749370006679,0.06381258,105580.0,105570.0,0.50069638]
[1749370007105,0.05434154,105580.0,105570.0,0.50069638]
[1749370007720,0.04487068,105580.0,105570.0,0.50069638]
[1749370007928,0.05434154,105580.0,105570.0,0.46278456]
[1749370009413,0.04487068,105580.0,105570.0,0.46278456]
[1749370009833,0.05434154,105580.0,105570.0,0.46278456]
[1749370010057,0.04487068,105580.0,105570.0,0.46278456]
[1749370010462,0.05434154,105580.0,105570.0,0.46278456]
[1749370012667,0.04487068,105580.0,105570.0,0.46278456]
[1749370012992,0.05434145,105580.0,105570.0,0.46278456]
[1749370013622,0.05434145,105580.0,105570.0,0.44996672]
[1749370014784,0.05434145,105580.0,105570.0,0.38996672]
[1749370014990,0.04487068,105580.0,105570.0,0.38996672]
[1749370017030,0.04487068,105580.0,105570.0,0.46996672]
[1749370017361,0.05434154,105580.0,105570.0,0.46996672]
[1749370017605,0.04487068,105580.0,105570.0,0.46996672]
[1749370019882,0.0354,105580.0,105570.0,0.46996672]
[1749370021121,0.04487077,105580.0,105570.0,0.46996672]
[1749370023094,0.0354,105580.0,105570.0,0.46996672]
[1749370030264,0.0354,105580.0,105570.0,0.91438384]
[1749370030472,0.0354,105580.0,105570.0,0.46996672]
[1749370034245,0.0354,105580.0,105570.0,0.91438384]
[1749370034443,0.0354,105580.0,105570.0,0.85762499]
[1749370034880,0.0354,105580.0,105570.0,0.93329436]
[1749370036016,0.0334,105580.0,105570.0,0.93329436]
[1749370036207,0.0324,105580.0,105570.0,0.93329436]
[1749370036918,0.34204,105590.0,105570.0,0.89540547]
[1749370037158,0.34204,105590.0,105580.0,1.10585815]
[1749370037159,0.03474,105590.0,105580.0,1.10585815]
[1749370037382,0.03474,105590.0,105580.0,1.10349053]
[1749370037610,0.03474,105590.0,105580.0,0.65907341]
[1749370038084,0.03674,105590.0,105580.0,0.65907341]
[1749370038737,0.03774,105590.0,105580.0,0.65907341]
[1749370039853,0.03474,105590.0,105580.0,0.65907341]
[1749370040069,0.03574,105590.0,105580.0,0.65907341]
[1749370040312,0.03774,105590.0,105580.0,0.65907341]
[1749370041946,0.03774,105590.0,105580.0,1.10349053]
[1749370042398,0.02144,105590.0,105580.0,1.10349053]
[1749370042839,0.01944,105590.0,105580.0,1.10349053]
[1749370043079,0.01844,105590.0,105580.0,1.10349053]
[1749370043295,0.01844,105590.0,105580.0,1.10649053]
[1749370043511,0.00204,105590.0,105580.0,1.10649053]
[1749370043738,0.00204,105590.0,105580.0,1.49407692]
[1749370043959,0.00204,105590.0,105580.0,1.56974629]
[1749370044414,0.00204,105590.0,105580.0,1.12532917]
[1749370044636,0.00204,105590.0,105580.0,1.05923462]
[1749370044860,0.00204,105590.0,105580.0,1.0496598]
[1749370045119,0.00204,105590.0,105580.0,1.12532917]
[1749370048038,0.00204,105590.0,105580.0,1.13469606]
[1749370049249,0.00204,105590.0,105580.0,1.05902669]
[1749370051613,0.01794,105590.0,105580.0,1.05902669]
[1749370053468,0.01794,105590.0,105580.0,0.60524268]
[1749370053675,0.01794,105590.0,105580.0,1.0496598]
[1749370055569,0.03294,105590.0,105580.0,1.0496598]
[1749370057340,0.0311,105590.0,105580.0,1.0496598]
[1749370057546,0.0311,105590.0,105580.0,1.05906788]
[1749370058417,0.0311,105590.0,105580.0,1.57915437]
[1749370058827,0.0161,105590.0,105580.0,1.57915437]
[1749370059668,0.0161,105590.0,105580.0,1.13473725]
[1749370059887,0.0161,105590.0,105580.0,1.57915437]
[1749370063445,0.0326,105590.0,105580.0,1.57915437]
[1749370063673,0.0326,105590.0,105580.0,1.13473725]
[1749370065867,0.0326,105590.0,105580.0,1.57915437]
[1749370069332,0.0161,105590.0,105580.0,1.57915437]
[1749370069546,0.0161,105590.0,105580.0,1.503485]
[1749370069760,0.0161,105590.0,105580.0,1.531937]
[1749370070805,0.0318,105590.0,105580.0,1.531937]
[1749370071016,0.0161,105590.0,105580.0,1.531937]
[1749370071430,0.0161,105590.0,105580.0,0.64310276]
[1749370071641,0.0318,105590.0,105580.0,1.08751988]
[1749370072902,0.0318,105590.0,105580.0,1.18227555]
[1749370076430,0.0161,105590.0,105580.0,1.18227555]
[1749370077449,0.0161,105590.0,105580.0,0.73785843]
[1749370077704,0.0161,105590.0,105580.0,1.18227555]
[1749370077911,0.0322,105590.0,105580.0,1.18227555]
[1749370079163,0.0322,105590.0,105580.0,1.33227555]
[1749370081138,0.0161,105590.0,105580.0,1.33227555]
[1749370081828,0.0161,105590.0,105580.0,2.03227555]
[1749370082710,0.0319,105590.0,105580.0,2.0468164]
[1749370082929,0.0161,105590.0,105580.0,2.0468164]
[1749370083141,0.0161,105590.0,105580.0,1.3468164]
[1749370083567,0.0161,105590.0,105580.0,1.7468164]
[1749370084888,0.0161,105590.0,105580.0,2.19123352]
[1749370085735,0.0002,105590.0,105580.0,2.19123352]
[1749370086165,0.0002,105590.0,105580.0,2.89123352]
[1749370086373,0.0002,105590.0,105580.0,2.00239928]
[1749370086587,0.0002,105590.0,105580.0,2.89123352]
[1749370088957,0.0167,105590.0,105580.0,2.89123352]
[1749370089805,0.0167,105590.0,105580.0,2.19123352]
[1749370090887,0.0002,105590.0,105580.0,2.19123352]
[1749370092801,0.0002,105590.0,105580.0,2.89123352]
[1749370092994,0.0002,105590.0,105580.0,2.49123352]
[1749370093684,0.0167,105590.0,105580.0,2.49123352]
[1749370093901,0.0328,105590.0,105580.0,2.49123352]
[1749370097126,0.0328,105590.0,105580.0,2.89123352]
[1749370098306,0.0328,105590.0,105580.0,2.49123352]
[1749370100502,0.0328,105590.0,105580.0,2.57907352]
[1749370102438,0.0328,105590.0,105580.0,2.97907352]
[1749370104212,0.0328,105590.0,105580.0,2.27907352]
[1749370104843,0.0328,105590.0,105580.0,1.87907352]
[1749370108318,0.0328,105590.0,105580.0,0.99023928]
[1749370108526,0.0328,105590.0,105580.0,1.87907352]
[1749370108814,0.0328,105590.0,105580.0,2.57907352]
[1749370109023,0.0328,105590.0,105580.0,1.87907352]
[1749370109882,0.0328,105590.0,105580.0,2.57907352]
[1749370110539,0.0328,105590.0,105580.0,2.97907352]
[1749370120023,0.0328,105590.0,105580.0,2.27907352]
[1749370122861,0.0328,105590.0,105580.0,2.97907352]
[1749370123295,0.0328,105590.0,105580.0,2.97659352]
[1749370123505,0.0328,105590.0,105580.0,2.27659352]
[1749370123871,0.0328,105590.0,105580.0,1.90075352]
[1749370124062,0.0328,105590.0,105580.0,2.27655352]
[1749370124556,0.0328,105590.0,105580.0,1.90075352]
[1749370124714,0.0328,105590.0,105580.0,2.27655352]
[1749370125093,0.0328,105590.0,105580.0,2.18179785]
[1749370126461,0.0328,105590.0,105580.0,2.88179785]
[1749370130311,0.0328,105590.0,105580.0,2.50599785]
[1749370130479,0.0328,105590.0,105580.0,1.6376318]
[1749370130686,0.0328,105590.0,105580.0,1.73233517]
[1749370130885,0.0328,105590.0,105580.0,2.02025517]
[1749370135919,0.0328,105590.0,105580.0,2.42025517]
[1749370139289,0.0328,105590.0,105580.0,1.97583805]
[1749370139510,0.0328,105590.0,105580.0,2.42025517]
[1749370143775,0.0328,105590.0,105580.0,1.72025517]
[1749370146813,0.0328,105590.0,105580.0,2.42025517]
[1749370148645,0.0328,105590.0,105580.0,2.02025517]
[1749370152838,0.0328,105590.0,105580.0,2.42025517]
[1749370153036,0.0328,105590.0,105580.0,2.39180317]
[1749370155218,0.0328,105590.0,105580.0,1.99180317]
[1749370157176,0.0328,105590.0,105580.0,1.54738605]
[1749370157384,0.0328,105590.0,105580.0,1.25946605]
[1749370157504,0.0328,105590.0,105580.0,0.82840626]
[1749370159684,0.04226987,105590.0,105580.0,0.82844626]
[1749370159891,0.0328,105590.0,105580.0,0.82844626]
[1749370162227,0.0328,105590.0,105580.0,0.75268268]
[1749370165749,0.04226978,105590.0,105580.0,0.75268268]
[1749370165950,0.04226978,105590.0,105580.0,0.80943466]
[1749370167049,0.05174001,105590.0,105580.0,0.52151466]
[1749370167242,0.06121042,105590.0,105580.0,0.80943466]
[1749370173463,0.06121042,105590.0,105580.0,0.82716594]
[1749370174092,0.06121042,105590.0,105580.0,0.82716497]
[1749370174873,0.06121042,105590.0,105580.0,0.80943466]
[1749370175319,0.06121042,105590.0,105580.0,0.82716497]
[1749370175542,0.05174001,105590.0,105580.0,0.82716497]
[1749370175788,0.06121042,105590.0,105580.0,0.82716497]
[1749370176031,0.06121042,105590.0,105580.0,0.80943466]
[1749370176504,0.25062229,105590.0,105580.0,0.36169941]
[1749370176638,0.24115242,105590.0,105580.0,0.62123446]
[1749370176843,0.24115242,105590.0,105580.0,0.41568651]
[1749370177627,0.24115242,105590.0,105580.0,0.41368651]
[1749370177943,0.24115242,105590.0,105580.0,0.41268651]
[1749370178174,0.24115242,105590.0,105580.0,0.43041977]
[1749370178376,0.24115242,105590.0,105580.0,0.41268651]
[1749370178577,0.24115242,105590.0,105580.0,0.52041977]
[1749370178817,0.24115242,105590.0,105580.0,0.50268651]
[1749370179010,0.24215242,105590.0,105580.0,0.50268651]
[1749370180148,0.24215242,105590.0,105580.0,0.512158]
[1749370182835,0.24215242,105590.0,105580.0,0.50268651]
[1749370183052,0.24215242,105590.0,105580.0,0.512158]
[1749370184535,0.58215242,105590.0,105580.0,0.21476651]
[1749370184755,0.58215242,105590.0,105580.0,0.50268651]
[1749370184966,0.58215242,105590.0,105580.0,0.512158]
[1749370185415,0.58215242,105590.0,105580.0,0.50268651]
[1749370186299,0.58215242,105590.0,105580.0,0.21476651]
[1749370186520,0.58215242,105590.0,105580.0,0.50268651]
[1749370188253,0.58215242,105590.0,105580.0,0.21476651]
[1749370188616,0.58215242,105590.0,105580.0,0.40628703]
[1749370192615,0.58215242,105590.0,105580.0,0.37792]
[1749370193529,0.58215242,105590.0,105580.0,0.40633286]
[1749370193741,0.58215242,105590.0,105580.0,0.37796]
[1749370193958,0.58215242,105590.0,105580.0,0.40633405]
[1749370194617,0.58215242,105590.0,105580.0,0.37796]
[1749370195022,0.58215242,105590.0,105580.0,0.40633547]
[1749370197879,0.58215242,105590.0,105580.0,0.37796]
[1749370200220,0.58215242,105590.0,105580.0,0.40633547]
[1749370202351,0.58215242,105590.0,105580.0,0.40629547]
[1749370210615,0.0012,105590.0,105580.0,1.17439733]
[1749370210823,0.0012,105590.0,105580.0,0.74891466]
[1749370215420,0.0012,105590.0,105580.0,0.78674683]
[1749370228401,0.0162,105590.0,105580.0,0.78674683]
[1749370231574,0.0313,105590.0,105580.0,0.78674683]
[1749370235410,0.0313,105590.0,105580.0,0.74891466]
[1749370238664,0.0313,105590.0,105580.0,1.19333178]
[1749370239349,0.0313,105590.0,105580.0,0.74891466]
[1749370240685,0.0313,105590.0,105580.0,0.69216268]
[1749370266252,0.0313,105590.0,105580.0,0.76792626]
[1749370282326,0.0313,105590.0,105580.0,0.76780626]
[1749370294532,0.05971042,105590.0,105580.0,0.48000626]
[1749370294733,0.05023983,105590.0,105580.0,0.76780626]
[1749370301933,0.04076987,105590.0,105580.0,0.76780626]
[1749370303943,0.0313,105590.0,105580.0,0.76780626]
[1749370304672,0.04076987,105590.0,105580.0,0.76780626]
[1749370304873,0.04076978,105590.0,105580.0,0.76780626]
[1749370307814,0.0313,105590.0,105580.0,0.76780626]
[1749370308027,0.04076978,105590.0,105580.0,0.76780626]
[1749370308347,0.0313,105590.0,105580.0,0.76780626]
[1749370320642,0.04076987,105590.0,105580.0,0.76780626]
[1749370330178,0.05023992,105590.0,105580.0,0.76780626]
[1749370330793,0.05023992,105590.0,105580.0,0.76772626]
[1749370330999,0.05971015,105590.0,105580.0,0.76772626]
[1749370331205,0.2585927,105590.0,105580.0,0.48000644]
[1749370331403,0.57965278,105590.0,105580.0,0.53097883]
[1749370331641,0.57965278,105590.0,105580.0,0.54042371]
[1749370332158,0.57965278,105590.0,105580.0,0.45042371]
[1749370332583,0.57965278,105590.0,105580.0,0.41253559]
[1749370334308,0.57965278,105590.0,105580.0,0.6114368]
[1749370334738,0.57965278,105590.0,105580.0,0.62920679]
[1749370334958,0.57965278,105590.0,105580.0,0.6114368]
[1749370335083,0.57965278,105590.0,105580.0,0.62920679]
[1749370335282,0.57965278,105590.0,105580.0,0.6114368]
[1749370335856,0.57018246,105590.0,105580.0,0.43030558]
[1749370336727,0.57018246,105590.0,105580.0,0.41253559]
[1749370337137,0.57018246,105590.0,105580.0,0.43030558]
[1749370338329,0.57018246,105590.0,105580.0,0.43977707]
[1749370338529,0.57018246,105590.0,105580.0,0.42200708]
[1749370338732,0.57018246,105590.0,105580.0,0.43030558]
[1749370338952,0.57018246,105590.0,105580.0,0.31613611]
[1749370339156,0.25034347,105580.0,105570.0,0.23680808]
[1749370339407,0.33806347,105580.0,105570.0,0.62092756]
[1749370339605,0.32859252,105580.0,105570.0,0.62092756]
[1749370339805,0.32859252,105580.0,105570.0,0.63869882]
[1749370340014,0.13916271,105580.0,105570.0,0.63039931]
[1749370340217,0.13916271,105580.0,105570.0,0.62092756]
[1749370340218,0.33806356,105580.0,105570.0,0.62092756]
[1749370340424,0.33806356,105580.0,105570.0,0.63139949]
[1749370340773,0.33806356,105580.0,105570.0,0.64087133]
[1749370341391,0.33806356,105580.0,105570.0,0.64187133]
[1749370341637,0.33806356,105580.0,105570.0,0.63239949]
[1749370341836,0.32859252,105580.0,105570.0,0.62292756]
[1749370342051,0.32859252,105580.0,105570.0,0.32573554]
[1749370342203,0.3191213,105580.0,105570.0,0.61349554]
[1749370342846,0.30964981,105580.0,105570.0,0.31626334]
[1749370343046,0.30964981,105580.0,105570.0,0.62296801]
[1749370344466,0.31912112,105580.0,105570.0,0.64191232]
[1749370344719,0.31912112,105580.0,105570.0,0.65138434]
[1749370344958,0.31912112,105580.0,105570.0,0.65138389]
[1749370345162,0.14863375,105580.0,105570.0,0.65138335]
[1749370346359,0.14863375,105580.0,105570.0,0.6419116]
[1749370346619,0.34753505,105580.0,105570.0,0.65138344]
[1749370347724,0.15810524,105580.0,105570.0,0.65138344]
[1749370350435,0.04197077,105580.0,105570.0,0.65138344]
[1749370350633,0.06091285,105580.0,105570.0,0.65138299]
[1749370351044,0.06091294,105580.0,105570.0,0.65138299]
[1749370351278,0.06091276,105580.0,105570.0,0.65138299]
[1749370351513,0.0325,105580.0,105570.0,0.65138299]
[1749370351715,0.04197068,105580.0,105570.0,0.65138299]
[1749370351925,0.0325,105580.0,105570.0,0.65138299]
[1749370352128,0.0325,105580.0,105570.0,0.68927111]
[1749370352603,0.04197068,105580.0,105570.0,0.68927111]
[1749370353618,0.0325,105580.0,105570.0,0.68927111]
[1749370353832,0.04197068,105580.0,105570.0,0.68927111]
[1749370355425,0.0325,105580.0,105570.0,0.68927111]
[1749370355854,0.04197077,105580.0,105570.0,0.68927111]
[1749370357309,0.0325,105580.0,105570.0,0.68927111]
[1749370358552,0.0325,105580.0,105570.0,0.660855]
[1749370358757,0.0325,105580.0,105570.0,0.68923767]
[1749370359609,0.0325,105580.0,105570.0,0.660855]
[1749370360370,0.04197077,105580.0,105570.0,0.660855]
[1749370360600,0.04197077,105580.0,105570.0,0.71771435]
[1749370360794,0.04197068,105580.0,105570.0,0.71771435]
[1749370363080,0.05144154,105580.0,105570.0,0.71771435]
[1749370363232,0.04197068,105580.0,105570.0,0.71771435]
[1749370363430,0.05144154,105580.0,105570.0,0.71771435]
[1749370363830,0.04197068,105580.0,105570.0,0.71771435]
[1749370364250,0.0325,105580.0,105570.0,0.67982623]
[1749370364457,0.0325,105580.0,105570.0,0.71770526]
[1749370364724,0.04197077,105580.0,105570.0,0.71770526]
[1749370365175,0.04197077,105580.0,105570.0,0.67982623]
[1749370366174,0.04197077,105580.0,105570.0,0.39206623]
[1749370366386,0.04197077,105580.0,105570.0,0.71766576]
[1749370369109,0.0325,105580.0,105570.0,0.71766576]
[1749370369819,0.04197077,105580.0,105570.0,0.71766576]
[1749370370333,0.04197068,105580.0,105570.0,0.71766576]
[1749370372882,0.04197077,105580.0,105570.0,0.71766576]
[1749370373109,0.0325,105580.0,105570.0,0.71766576]
[1749370374620,0.0325,105580.0,105570.0,0.67978623]
[1749370376593,0.0325,105580.0,105570.0,1.12420335]
[1749370377032,0.0325,105580.0,105570.0,0.67978623]
[1749370391846,0.04197068,105580.0,105570.0,0.67974623]
[1749370393360,0.0325,105580.0,105570.0,0.67974623]
[1749370393569,0.46576083,105590.0,105580.0,0.22587279]
[1749370393771,0.46576083,105590.0,105580.0,0.36016172]
[1749370394793,0.46676083,105590.0,105580.0,0.36016172]
[1749370395520,0.46676074,105590.0,105580.0,0.36963258]
[1749370396612,0.49876074,105590.0,105580.0,0.36963258]
[1749370399395,0.50823124,105590.0,105580.0,0.36963258]
[1749370400019,0.49876074,105590.0,105580.0,0.36963258]
[1749370406526,0.49876074,105590.0,105580.0,0.42649193]
[1749370407483,0.4798201,105590.0,105580.0,0.42649193]